bitfinex-derivatives/quotes_BTCF0:USTF0_20250127
["timestamp","ask_amount","ask_price","bid_price","bid_amount"]
[1737992989849,0.19717,101430.0,101420.0,1.697177]
[1737992990349,0.37277941,101440.0,101430.0,0.19717]
[1737992990350,0.57008616,101440.0,101430.0,0.19717]
[1737992990758,0.01212716,101440.0,101430.0,0.29914225]
[1737992991054,0.01212716,101440.0,101430.0,0.65994225]
[1737992991259,0.01212716,101440.0,101430.0,0.73474225]
[1737992992163,0.02012716,101440.0,101430.0,0.73574225]
[1737992992365,0.02512716,101440.0,101430.0,0.73574225]
[1737992992558,0.02512716,101440.0,101430.0,0.37494225]
[1737992993363,0.02512716,101440.0,101430.0,0.73574225]
[1737992993664,0.02957121,101450.0,101430.0,0.53857225]
[1737992993866,0.02957121,101450.0,101440.0,0.73272325]
[1737992995064,0.02957121,101450.0,101440.0,0.80302325]
[1737992995366,0.02957121,101450.0,101440.0,2.30302325]
[1737992995567,0.02957121,101450.0,101440.0,2.4049955]
[1737992995767,0.00014775,101460.0,101450.0,0.197131]
[1737992995971,0.00014775,101460.0,101450.0,0.65990325]
[1737992996568,0.19725975,101460.0,101450.0,0.557931]
[1737992996761,0.55805975,101460.0,101450.0,0.197131]
[1737992996966,0.197131,101450.0,101440.0,0.197141]
[1737992997167,0.557931,101450.0,101440.0,0.197141]
[1737992997870,0.557931,101450.0,101440.0,0.29911325]
[1737992999072,0.00514775,101460.0,101440.0,0.46277225]
[1737992999372,0.20226175,101460.0,101450.0,0.197131]
[1737992999561,0.00014775,101460.0,101450.0,0.29910325]
[1737992999961,0.00014775,101460.0,101450.0,0.65990325]
[1737993000366,0.00014775,101460.0,101450.0,0.29910325]
[1737993000668,0.20625975,101460.0,101450.0,0.65990325]
[1737993000968,0.00914775,101460.0,101450.0,0.65990325]
[1737993001164,0.00914775,101460.0,101450.0,0.66090325]
[1737993001366,0.00914775,101460.0,101450.0,0.80580325]
[1737993002865,0.00914775,101460.0,101450.0,1.29200325]
[1737993003072,0.19853684,101490.0,101480.0,0.197073]
[1737993003275,0.00147884,101490.0,101480.0,0.65984525]
[1737993003574,0.728345,101500.0,101490.0,0.197053]
[1737993003963,0.197053,101490.0,101480.0,0.65982925]
[1737993004166,0.197053,101490.0,101480.0,2.05800475]
[1737993004569,0.202053,101490.0,101480.0,2.05800475]
[1737993004765,0.005,101490.0,101480.0,0.659977]
[1737993005270,0.005,101490.0,101480.0,2.159977]
[1737993005666,0.005,101490.0,101480.0,2.234677]
[1737993006369,0.1,101500.0,101490.0,0.197053]
[1737993006672,0.1,101500.0,101490.0,0.65982525]
[1737993007465,0.297034,101500.0,101490.0,0.557853]
[1737993007670,0.197053,101490.0,101480.0,0.660545]
[1737993007870,0.557853,101490.0,101480.0,0.00014775]
[1737993008171,0.629853,101490.0,101480.0,0.00014775]
[1737993008767,0.629853,101490.0,101480.0,0.00114775]
[1737993009468,0.269053,101490.0,101480.0,0.660993]
[1737993009669,0.197053,101490.0,101480.0,0.660993]
[1737993009864,0.297038,101500.0,101490.0,0.197053]
[1737993010063,0.1,101500.0,101490.0,0.65982525]
[1737993010270,0.1,101500.0,101490.0,2.15982525]
[1737993010773,0.00014775,101510.0,101500.0,0.29900625]
[1737993010970,0.00014775,101510.0,101500.0,0.65980625]
[1737993011277,0.0014783,101520.0,101510.0,0.197015]
[1737993011478,0.196964,101540.0,101510.0,0.6139975]
[1737993011678,0.196964,101540.0,101530.0,0.29894825]
[1737993011878,0.557764,101540.0,101530.0,0.196976]
[1737993012074,0.557764,101540.0,101520.0,0.29896025]
[1737993012075,0.196976,101530.0,101520.0,0.29896025]
[1737993012270,0.196976,101530.0,101520.0,0.196988]
[1737993012470,0.196995,101520.0,101510.0,0.36094775]
[1737993012779,0.271295,101520.0,101510.0,0.659935]
[1737993013076,9.604e-05,101540.0,101510.0,0.512173]
[1737993013271,0.19706004,101540.0,101530.0,0.29894825]
[1737993013867,9.604e-05,101540.0,101530.0,2.15974825]
[1737993014066,0.03,101550.0,101540.0,0.196956]
[1737993014273,0.226937,101550.0,101540.0,0.29892825]
[1737993015365,0.226937,101550.0,101540.0,0.65972825]
[1737993015572,0.226937,101550.0,101540.0,0.29892825]
[1737993015773,0.03,101550.0,101540.0,0.65972825]
[1737993016182,0.226937,101550.0,101540.0,0.65972825]
[1737993016380,0.226937,101550.0,101540.0,0.557756]
[1737993016678,0.226937,101550.0,101530.0,0.55843975]
[1737993016679,0.196956,101540.0,101530.0,0.55843975]
[1737993016876,0.226943,101550.0,101540.0,0.196956]
[1737993017074,0.03,101550.0,101540.0,0.65972825]
[1737993017474,0.227937,101550.0,101540.0,0.65972825]
[1737993017883,0.227937,101550.0,101540.0,0.29992825]
[1737993018385,0.588737,101550.0,101540.0,0.001]
[1737993019092,0.227937,101550.0,101530.0,0.46292]
[1737993019286,0.227937,101550.0,101540.0,0.29992825]
[1737993019584,0.227937,101550.0,101540.0,0.197956]
[1737993020093,0.588737,101550.0,101540.0,0.001]
[1737993020390,0.227937,101550.0,101540.0,0.001]
[1737993020596,0.588737,101550.0,101540.0,0.001]
[1737993020980,0.69070925,101550.0,101540.0,0.001]
[1737993021181,0.69070925,101550.0,101540.0,0.000868]
[1737993021392,0.69070925,101550.0,101530.0,0.00114775]
[1737993021393,0.196956,101540.0,101530.0,0.00114775]
[1737993021689,0.627556,101540.0,101530.0,0.00114775]
[1737993022092,0.72952825,101540.0,101530.0,7.5e-07]
[1737993022294,0.83257225,101540.0,101490.0,0.4099893]
[1737993022492,0.557834,101500.0,101490.0,0.4099893]
[1737993022697,0.197053,101490.0,101480.0,0.7340997]
[1737993022891,0.197053,101490.0,101480.0,0.83555195]
[1737993023092,0.197053,101490.0,101480.0,1.97475195]
[1737993023295,0.557853,101490.0,101480.0,0.1757097]
[1737993024198,0.00014775,101500.0,101480.0,1.1012542]
[1737993024495,0.00014775,101500.0,101490.0,0.65982525]
[1737993024893,0.19846312,101530.0,101520.0,0.196995]
[1737993025401,0.00147812,101530.0,101520.0,0.65976725]
[1737993026090,0.55925412,101530.0,101520.0,0.29896725]
[1737993026300,0.196995,101520.0,101510.0,0.43014775]
[1737993026492,0.36327812,101530.0,101520.0,0.196995]
[1737993026493,0.00247812,101530.0,101520.0,0.196995]
[1737993026797,0.00247812,101530.0,101520.0,0.29896725]
[1737993027101,0.001,101530.0,101520.0,0.65976725]
[1737993028088,0.197976,101530.0,101520.0,0.196995]
[1737993029088,0.197976,101530.0,101520.0,0.197995]
[1737993029504,0.558776,101530.0,101520.0,0.197995]
[1737993029795,0.629976,101530.0,101520.0,0.001]
[1737993029988,0.629976,101530.0,101520.0,0.29996725]
[1737993030192,0.628976,101530.0,101520.0,0.29996725]
[1737993030393,0.0732,101530.0,101520.0,0.66076725]
[1737993030591,0.002,101530.0,101520.0,0.66076725]
[1737993030798,0.658946,101550.0,101540.0,0.196956]
[1737993030992,0.298146,101550.0,101540.0,0.196956]
[1737993031399,0.298146,101550.0,101540.0,0.65972825]
[1737993031400,0.03,101550.0,101540.0,0.65972825]
[1737993032598,0.032,101550.0,101540.0,0.557756]
[1737993032908,0.228937,101550.0,101540.0,0.557756]
[1737993033207,0.228937,101550.0,101540.0,0.29892825]
[1737993034711,0.589737,101550.0,101540.0,0.29892825]
[1737993034894,0.196956,101540.0,101530.0,0.19712175]
[1737993035497,0.557756,101540.0,101530.0,0.00014775]
[1737993035704,0.629056,101540.0,101530.0,0.00014775]
[1737993036501,0.196939,101550.0,101540.0,0.196956]
[1737993036701,0.196939,101550.0,101540.0,0.29892825]
[1737993037512,0.196956,101540.0,101530.0,0.659885]
[1737993037898,0.196956,101540.0,101530.0,0.299085]
[1737993038412,0.196956,101540.0,101530.0,0.659885]
[1737993038710,0.198939,101550.0,101540.0,0.196956]
[1737993038910,0.198939,101550.0,101540.0,0.29892825]
[1737993039412,0.196939,101550.0,101540.0,0.29892825]
[1737993039714,0.557739,101550.0,101540.0,0.29892825]
[1737993039916,0.557739,101550.0,101540.0,0.196956]
[1737993040418,0.196956,101540.0,101530.0,0.734986]
[1737993040610,0.557753,101550.0,101540.0,0.196953]
[1737993041013,0.196953,101550.0,101540.0,0.196953]
[1737993041218,0.196953,101550.0,101540.0,0.29892525]
[1737993041516,0.3608,101550.0,101530.0,0.43604775]
[1737993041719,0.196956,101540.0,101530.0,0.63301175]
[1737993042716,0.196956,101540.0,101530.0,0.27221175]
[1737993043621,0.557756,101540.0,101530.0,0.19711175]
[1737993046616,0.196956,101540.0,101530.0,0.19711175]
[1737993046916,0.19695,101550.0,101540.0,0.196956]
[1737993047220,0.19695,101550.0,101540.0,0.65972825]
[1737993047406,0.19695,101550.0,101540.0,0.73512825]
[1737993047612,0.19695,101550.0,101540.0,2.23512825]
[1737993048119,0.19895,101550.0,101540.0,2.23512825]
[1737993048319,0.19895,101550.0,101540.0,1.87432825]
[1737993049714,0.55975,101550.0,101540.0,1.5]
[1737993050113,0.002,101550.0,101530.0,0.374189]
[1737993050422,0.196956,101540.0,101530.0,0.374189]
[1737993050607,0.196956,101540.0,101530.0,1.874189]
[1737993050813,0.196956,101540.0,101530.0,1.77221675]
[1737993052921,0.557756,101540.0,101530.0,1.57524775]
[1737993053224,0.196995,101520.0,101510.0,0.78244847]
[1737993053410,0.196995,101520.0,101510.0,0.85980072]
[1737993053616,0.196995,101520.0,101510.0,2.72060072]
[1737993054223,0.196995,101520.0,101510.0,2.25782847]
[1737993054423,0.196995,101520.0,101510.0,1.77198847]
[1737993054818,0.196995,101520.0,101510.0,1.87396072]
[1737993055013,0.00014775,101530.0,101510.0,2.03774972]
[1737993055219,0.19712975,101530.0,101520.0,0.29896725]
[1737993056417,0.19712975,101530.0,101520.0,0.37086725]
[1737993056619,0.19712975,101530.0,101520.0,0.73166725]
[1737993057428,0.00014775,101530.0,101520.0,0.73166725]
[1737993057722,0.557746,101550.0,101520.0,0.6366445]
[1737993057926,0.196946,101550.0,101540.0,0.29892825]
[1737993058414,0.196946,101550.0,101540.0,0.196956]
[1737993058824,0.557746,101550.0,101540.0,0.196956]
[1737993059027,0.196956,101540.0,101530.0,1.77271475]
[1737993060221,0.196956,101540.0,101530.0,0.00014775]
[1737993060528,0.65972825,101540.0,101530.0,0.00014775]
[1737993060820,0.773256,101540.0,101530.0,0.00014775]
[1737993061020,0.701356,101540.0,101530.0,0.19712375]
[1737993061220,0.340556,101540.0,101530.0,0.19712375]
[1737993061615,0.701356,101540.0,101530.0,0.00014775]
[1737993061928,0.773256,101540.0,101530.0,0.00014775]
[1737993063124,0.87522825,101540.0,101530.0,0.00014775]
[1737993063324,0.196995,101520.0,101510.0,0.00147747]
[1737993063532,0.82357225,101520.0,101500.0,1.5]
[1737993063830,0.197034,101500.0,101490.0,0.02463]
[1737993064020,0.197073,101480.0,101470.0,0.44371947]
[1737993064331,0.197068,101490.0,101480.0,0.197071]
[1737993064529,0.19721575,101490.0,101480.0,0.197071]
[1737993065330,0.197073,101480.0,101470.0,0.90648972]
[1737993066530,0.197073,101480.0,101470.0,0.73935525]
[1737993066737,0.00014775,101490.0,101480.0,0.197073]
[1737993066738,0.19721075,101490.0,101480.0,0.197073]
[1737993067427,0.00014775,101490.0,101480.0,0.29904525]
[1737993067626,0.00014775,101490.0,101480.0,0.65984525]
[1737993068334,0.19720075,101490.0,101480.0,0.65984525]
[1737993069235,0.19720075,101490.0,101480.0,0.557873]
[1737993069427,0.19720075,101490.0,101480.0,0.197073]
[1737993069630,0.19720075,101490.0,101480.0,1.697073]
[1737993069936,0.19720075,101490.0,101480.0,1.706073]
[1737993070125,0.55800075,101490.0,101480.0,1.509]
[1737993070627,0.55800075,101490.0,101480.0,1.514]
[1737993070934,0.19720075,101490.0,101480.0,1.711073]
[1737993071426,0.19720075,101490.0,101480.0,1.81304525]
[1737993071826,0.19720075,101490.0,101480.0,1.711073]
[1737993072030,0.55800075,101490.0,101480.0,1.514]
[1737993072222,0.659973,101490.0,101480.0,0.014]
[1737993073733,0.197092,101470.0,101460.0,0.00014775]
[1737993074035,1.02066425,101470.0,101460.0,0.00014775]
[1737993074325,0.197131,101450.0,101440.0,0.00147807]
[1737993074528,0.557931,101450.0,101440.0,1.69862907]
[1737993076028,0.36094775,101460.0,101440.0,1.60345032]
[1737993076221,0.00014775,101460.0,101450.0,0.29910325]
[1737993076627,0.19725975,101460.0,101450.0,0.197131]
[1737993078534,0.19725975,101460.0,101450.0,0.198131]
[1737993078734,0.55805975,101460.0,101450.0,0.001]
[1737993080135,0.660032,101460.0,101450.0,0.001]
[1737993081032,0.55805975,101460.0,101450.0,0.001]
[1737993081534,0.55805975,101460.0,101450.0,0.003]
[1737993081744,0.55805975,101460.0,101450.0,0.002]
[1737993082037,0.56205975,101460.0,101450.0,0.002]
[1737993082436,0.197131,101450.0,101440.0,1.50147807]
[1737993082626,0.557931,101450.0,101440.0,1.50147807]
[1737993082830,0.631631,101450.0,101440.0,1.50147807]
[1737993083330,0.270831,101450.0,101440.0,1.69862907]
[1737993083731,0.270831,101450.0,101440.0,1.50147807]
[1737993083933,0.631631,101450.0,101440.0,1.50147807]
[1737993084341,0.632631,101450.0,101440.0,1.50147807]
[1737993085832,0.632631,101450.0,101440.0,1.69862907]
[1737993086034,0.558931,101450.0,101440.0,1.69862907]
[1737993086230,0.198131,101450.0,101440.0,2.16140132]
[1737993086441,0.198131,101450.0,101440.0,1.50147807]
[1737993086629,0.558931,101450.0,101440.0,1.50147807]
[1737993086834,0.198131,101450.0,101440.0,1.50147807]
[1737993087334,0.66090325,101450.0,101440.0,1.50147807]
[1737993087534,0.197151,101440.0,101430.0,0.14484775]
[1737993087734,0.557951,101440.0,101430.0,0.34201775]
[1737993087936,0.557951,101440.0,101430.0,1.84201775]
[1737993088937,0.557951,101440.0,101430.0,0.34201775]
[1737993089244,0.557951,101440.0,101430.0,0.14884775]
[1737993090133,0.557951,101440.0,101430.0,0.34601775]
[1737993090134,0.197151,101440.0,101430.0,0.34601775]
[1737993090335,0.197151,101440.0,101430.0,0.80879]
[1737993090536,0.197138,101450.0,101440.0,0.19714]
[1737993090738,0.197138,101450.0,101440.0,0.26503663]
[1737993091043,0.197138,101450.0,101440.0,0.19714]
[1737993091243,0.197138,101450.0,101440.0,1.69714]
[1737993091430,0.26503463,101450.0,101440.0,1.5]
[1737993091635,0.197151,101440.0,101430.0,0.14884775]
[1737993091831,0.557951,101440.0,101430.0,0.14684775]
[1737993092041,0.197151,101440.0,101430.0,1.84401775]
[1737993092440,0.197151,101440.0,101430.0,1.91191438]
[1737993092642,0.197151,101440.0,101430.0,2.27071438]
[1737993093040,0.197151,101440.0,101430.0,2.27271438]
[1737993093639,0.197151,101440.0,101430.0,2.27471438]
[1737993094645,0.197151,101440.0,101430.0,1.91391438]
[1737993095036,0.36094775,101460.0,101440.0,0.197132]
[1737993095233,0.00014775,101460.0,101450.0,0.62582763]
[1737993095440,0.00147883,101480.0,101450.0,0.57249326]
[1737993095639,0.19855783,101480.0,101470.0,0.26498863]
[1737993095942,0.19855783,101480.0,101470.0,0.197092]
[1737993096344,0.197092,101470.0,101460.0,0.700906]
[1737993097044,0.197092,101470.0,101460.0,0.76880263]
[1737993097550,0.197092,101470.0,101460.0,2.26880263]
[1737993098635,0.197092,101470.0,101460.0,2.30270863]
[1737993099049,0.197092,101470.0,101460.0,2.30370863]
[1737993099749,0.22665738,101470.0,101460.0,2.30470863]
[1737993099946,0.58745738,101470.0,101460.0,0.342106]
[1737993100142,0.68926001,101470.0,101460.0,0.002]
[1737993100353,0.83426001,101470.0,101460.0,0.002]
[1737993100843,0.197112,101460.0,101450.0,0.00014775]
[1737993101240,0.557912,101460.0,101450.0,0.00014775]
[1737993101654,0.65971463,101460.0,101450.0,0.00014775]
[1737993102050,0.19715,101440.0,101430.0,0.273261]
[1737993102348,0.55795,101440.0,101430.0,0.273261]
[1737993103444,0.19815,101440.0,101430.0,0.282261]
[1737993103653,0.19815,101440.0,101430.0,0.38406363]
[1737993104148,0.19815,101440.0,101430.0,0.74486363]
[1737993104347,0.19815,101440.0,101430.0,0.38406363]
[1737993104546,0.19815,101440.0,101430.0,0.282261]
[1737993105154,0.19715,101440.0,101430.0,0.273261]
[1737993105354,0.19815,101440.0,101430.0,0.285261]
[1737993105552,0.19815,101440.0,101430.0,0.012]
[1737993105945,0.001,101440.0,101430.0,0.67177463]
[1737993106654,0.001,101440.0,101430.0,2.17177463]
[1737993107551,0.001,101440.0,101430.0,2.069972]
[1737993108956,0.001,101440.0,101430.0,1.709172]
[1737993109260,0.198152,101440.0,101430.0,1.709172]
[1737993110861,0.198152,101440.0,101430.0,0.209172]
[1737993111056,0.558952,101440.0,101430.0,0.012]
[1737993111362,0.66075463,101440.0,101430.0,0.012]
[1737993111656,0.73405463,101440.0,101430.0,0.012]
[1737993111857,0.87325463,101440.0,101430.0,0.012]
[1737993112262,0.67610263,101440.0,101420.0,0.00014775]
[1737993112456,0.65977463,101430.0,101420.0,0.00014775]
[1737993112658,0.557972,101430.0,101420.0,0.00014775]
[1737993113962,0.65977463,101430.0,101420.0,0.00014775]
[1737993114162,0.197211,101410.0,101400.0,1.93662]
[1737993114359,0.197211,101410.0,101400.0,1.79722]
[1737993115462,0.198211,101410.0,101400.0,1.80622]
[1737993116061,0.199211,101410.0,101400.0,1.81522]
[1737993118161,0.560011,101410.0,101400.0,1.81522]
[1737993118362,0.199211,101410.0,101400.0,1.81522]
[1737993118762,0.560011,101410.0,101400.0,1.81522]
[1737993119065,0.62797203,101410.0,101400.0,0.118]
[1737993119267,0.69897203,101410.0,101400.0,0.118]
[1737993120456,0.84357203,101410.0,101400.0,0.118]
[1737993120657,0.775611,101410.0,101400.0,0.118]
[1737993121264,0.84357203,101410.0,101400.0,0.118]
[1737993121856,0.775611,101410.0,101400.0,0.118]
[1737993124364,0.3628,101410.0,101400.0,0.18596103]
[1737993124561,0.002,101410.0,101400.0,0.38319103]
[1737993124753,0.002,101410.0,101400.0,0.45579103]
[1737993125167,0.199211,101410.0,101400.0,0.45579103]
[1737993125366,0.199211,101410.0,101400.0,0.38783]
[1737993125961,0.002,101410.0,101400.0,0.45579103]
[1737993126271,0.002,101410.0,101400.0,0.88455206]
[1737993126566,0.002,101410.0,101400.0,0.81659103]
[1737993126963,0.00014775,101420.0,101410.0,0.197211]
[1737993127158,0.00014775,101420.0,101410.0,0.69497203]
[1737993127557,0.19863743,101440.0,101410.0,1.99776103]
[1737993127865,0.19863743,101440.0,101430.0,0.62593303]
[1737993127866,0.00147943,101440.0,101430.0,0.62593303]
[1737993128166,0.43024046,101440.0,101410.0,1.9298]
[1737993128368,0.197191,101430.0,101420.0,0.197189]
[1737993128964,0.55958518,101440.0,101430.0,0.197172]
[1737993129357,0.19878518,101440.0,101430.0,0.197172]
[1737993129561,0.19878518,101440.0,101430.0,0.26513303]
[1737993129761,0.00162718,101440.0,101430.0,0.62593303]
[1737993129964,0.00162718,101440.0,101430.0,0.69389406]
[1737993130164,0.197115,101460.0,101450.0,0.197114]
[1737993130472,0.197115,101460.0,101450.0,0.62587503]
[1737993130655,0.197115,101460.0,101450.0,0.557914]
[1737993130860,0.197115,101460.0,101450.0,2.132914]
[1737993131059,0.30066838,101470.0,101460.0,0.197113]
[1737993131467,0.30081613,101470.0,101460.0,0.197113]
[1737993131666,0.02971313,101470.0,101460.0,0.62587403]
[1737993132365,0.03171313,101470.0,101460.0,0.62587403]
[1737993133268,0.03171313,101470.0,101460.0,0.69383506]
[1737993133459,0.03171313,101470.0,101460.0,0.69483506]
[1737993134667,0.03171313,101470.0,101460.0,0.62687403]
[1737993134871,0.03171313,101470.0,101460.0,0.69483506]
[1737993135368,0.02971313,101470.0,101460.0,0.69583506]
[1737993135667,0.02971313,101470.0,101460.0,0.62787403]
[1737993136258,0.02971313,101470.0,101460.0,0.69583506]
[1737993136463,0.02971313,101470.0,101460.0,0.62687403]
[1737993136761,0.02971313,101470.0,101460.0,0.62887403]
[1737993137471,0.22680713,101470.0,101460.0,0.560913]
[1737993137771,0.22680713,101470.0,101460.0,0.62887403]
[1737993138076,0.22680713,101470.0,101460.0,0.26807403]
[1737993138376,0.22680713,101470.0,101460.0,0.62887403]
[1737993138573,0.02971313,101470.0,101460.0,0.69683506]
[1737993138772,0.02971313,101470.0,101460.0,0.69983506]
[1737993139269,0.02971313,101470.0,101460.0,0.63187403]
[1737993140169,0.02971313,101470.0,101460.0,0.69983506]
[1737993140361,0.31295891,101510.0,101460.0,0.50272206]
[1737993140567,0.4919,101520.0,101500.0,0.06796103]
[1737993140867,0.4919,101520.0,101510.0,0.26497703]
[1737993140868,0.196997,101520.0,101510.0,0.26497703]
[1737993141173,0.79862556,101540.0,101510.0,0.49466103]
[1737993141370,0.557797,101520.0,101510.0,0.0659]
[1737993141568,0.197016,101510.0,101500.0,0.197033]
[1737993141782,0.560816,101510.0,101500.0,0.19718075]
[1737993142076,0.200016,101510.0,101500.0,0.26514178]
[1737993142665,0.200016,101510.0,101500.0,0.19718075]
[1737993143273,0.200016,101510.0,101500.0,0.29891369]
[1737993143474,0.202016,101510.0,101500.0,0.29891369]
[1737993144169,0.199016,101510.0,101500.0,0.29891369]
[1737993144372,0.002,101510.0,101500.0,0.65971369]
[1737993144771,0.199016,101510.0,101500.0,0.65971369]
[1737993145170,0.199016,101510.0,101500.0,0.19718075]
[1737993145366,0.324716,101510.0,101500.0,0.19718075]
[1737993146273,0.324716,101510.0,101500.0,0.00014775]
[1737993146274,0.78724894,101510.0,101500.0,0.00014775]
[1737993146575,0.84754894,101510.0,101500.0,0.00014775]
[1737993147068,0.745816,101510.0,101500.0,0.00014775]
[1737993147372,0.745816,101510.0,101500.0,0.19718275]
[1737993148072,0.745816,101510.0,101500.0,0.00014775]
[1737993149171,0.385016,101510.0,101500.0,0.00014775]
[1737993149979,0.745816,101510.0,101500.0,0.00014775]
[1737993150370,0.385016,101510.0,101500.0,0.19718275]
[1737993150571,0.324716,101510.0,101500.0,0.55798275]
[1737993150874,0.324716,101510.0,101500.0,0.19718275]
[1737993151878,0.324716,101510.0,101500.0,0.65971569]
[1737993151879,0.003,101510.0,101500.0,0.65971569]
[1737993152070,0.623085,101530.0,101500.0,0.52388069]
[1737993152271,0.196985,101530.0,101520.0,0.29872894]
[1737993152778,0.32154518,101540.0,101530.0,0.196976]
[1737993154281,0.32754518,101540.0,101530.0,0.197976]
[1737993155881,0.32854518,101540.0,101530.0,0.558776]
[1737993156081,0.32854518,101540.0,101530.0,0.197976]
[1737993156472,0.00847818,101540.0,101530.0,0.66050894]
[1737993157177,0.20543518,101540.0,101530.0,0.558776]
[1737993157387,0.66796812,101540.0,101530.0,0.001]
[1737993157776,0.56623518,101540.0,101530.0,0.001]
[1737993158576,0.66796812,101540.0,101530.0,0.001]
[1737993158782,0.56623518,101540.0,101530.0,0.001]
[1737993159084,0.20543518,101540.0,101530.0,0.001]
[1737993159471,0.56623518,101540.0,101530.0,0.001]
[1737993159879,0.66796812,101540.0,101530.0,0.001]
[1737993160481,0.66796812,101540.0,101530.0,0.00043047]
[1737993160684,0.56623518,101540.0,101530.0,0.00043047]
[1737993161785,0.20543518,101540.0,101530.0,0.00043047]
[1737993161986,0.56623518,101540.0,101530.0,0.00043047]
[1737993162186,0.66796812,101540.0,101530.0,0.00043047]
[1737993162584,0.63405383,101540.0,101530.0,0.00043047]
[1737993162777,0.43709683,101540.0,101490.0,0.749044]
[1737993162984,0.197034,101500.0,101490.0,0.683044]
[1737993163183,0.557834,101500.0,101490.0,1.986]
[1737993163492,0.620234,101500.0,101490.0,1.986]
[1737993163674,0.4232,101500.0,101480.0,0.26488465]
[1737993163879,0.197073,101480.0,101470.0,0.55589565]
[1737993164083,0.197073,101480.0,101470.0,0.6237143]
[1737993164292,0.197073,101480.0,101470.0,2.1237143]
[1737993164685,0.197073,101480.0,101470.0,2.05589565]
[1737993164985,0.197073,101480.0,101470.0,2.00029565]
[1737993165182,0.197073,101480.0,101470.0,1.68013447]
[1737993165494,0.65966789,101480.0,101470.0,0.18013447]
[1737993165681,0.618673,101480.0,101470.0,0.18013447]
[1737993167087,0.618673,101480.0,101470.0,0.004]
[1737993167687,0.618673,101480.0,101470.0,0.002]
[1737993167990,0.618673,101480.0,101470.0,0.003]
[1737993168582,0.618673,101480.0,101470.0,0.002]
[1737993170288,0.3608,101490.0,101470.0,0.66168689]
[1737993170489,0.197055,101490.0,101480.0,0.65966789]
[1737993170689,0.197055,101490.0,101480.0,0.29886789]
[1737993171090,0.197055,101490.0,101480.0,0.197073]
[1737993171289,0.197055,101490.0,101480.0,1.697073]
[1737993172085,0.199055,101490.0,101480.0,1.697073]
[1737993172286,0.199055,101490.0,101480.0,1.79886789]
[1737993172486,0.199055,101490.0,101480.0,1.697073]
[1737993173094,0.002,101490.0,101480.0,2.15966789]
[1737993173287,0.002,101490.0,101480.0,2.27686789]
[1737993174094,0.199053,101490.0,101480.0,1.91606789]
[1737993174288,0.199053,101490.0,101480.0,1.814273]
[1737993175288,0.199053,101490.0,101470.0,0.619085]
[1737993175289,0.559853,101490.0,101470.0,0.619085]
[1737993175493,0.197073,101480.0,101470.0,0.619085]
[1737993176487,0.002,101490.0,101470.0,0.52379489]
[1737993176689,0.199069,101490.0,101480.0,0.197073]
[1737993176884,0.002,101490.0,101480.0,0.29886789]
[1737993177095,0.002,101490.0,101480.0,0.65966789]
[1737993177392,0.002,101490.0,101480.0,2.15966789]
[1737993178990,0.1984833,101520.0,101480.0,2.41365678]
[1737993179191,0.0014783,101520.0,101510.0,0.65960989]
[1737993179391,0.0014783,101520.0,101510.0,0.71930989]
[1737993179898,0.1984733,101520.0,101510.0,0.256715]
[1737993180195,0.196995,101520.0,101510.0,0.0597]
[1737993180398,0.197015,101510.0,101500.0,0.19717175]
[1737993180696,0.197015,101510.0,101500.0,0.19718175]
[1737993181297,0.197015,101510.0,101500.0,0.00014775]
[1737993181496,0.675815,101510.0,101500.0,0.00014775]
[1737993181701,0.77760989,101510.0,101500.0,0.00014775]
[1737993182394,0.675815,101510.0,101500.0,0.00014775]
[1737993183203,0.77960989,101510.0,101500.0,0.00014775]
[1737993183699,0.78160989,101510.0,101500.0,0.00014775]
[1737993184303,0.679815,101510.0,101500.0,0.00014775]
[1737993184493,0.682815,101510.0,101500.0,0.00014775]
[1737993187804,0.75065788,101510.0,101500.0,0.00014775]
[1737993188204,0.76068009,101510.0,101500.0,0.00014775]
[1737993189005,0.76068009,101510.0,101470.0,0.1727]
[1737993189006,0.56366509,101510.0,101470.0,0.1727]
[1737993189304,0.557873,101480.0,101470.0,0.1727]
[1737993189804,0.197073,101480.0,101470.0,0.43763488]
[1737993190305,0.197073,101480.0,101470.0,0.369792]
[1737993190806,0.197073,101480.0,101470.0,0.43763488]
[1737993191207,0.197073,101480.0,101470.0,0.369792]
[1737993192006,0.197073,101480.0,101470.0,0.79843488]
[1737993193205,0.197073,101480.0,101470.0,0.80343488]
[1737993193605,0.197073,101480.0,101470.0,0.80543488]
[1737993196112,0.197073,101480.0,101470.0,0.680492]
[1737993196316,0.197073,101480.0,101470.0,0.319692]
[1737993197203,0.197073,101480.0,101470.0,0.260292]
[1737993198410,0.62571588,101480.0,101470.0,0.007]
[1737993198613,0.669073,101480.0,101470.0,0.007]
[1737993199712,0.67883904,101480.0,101470.0,0.007]
[1737993200313,0.31803904,101480.0,101470.0,0.007]
[1737993200608,0.67883904,101480.0,101470.0,0.007]
[1737993200807,0.74668192,101480.0,101470.0,0.007]
[1737993201009,0.67883904,101480.0,101470.0,0.007]
[1737993203719,0.67883904,101480.0,101470.0,0.204092]
[1737993203916,0.26193904,101480.0,101470.0,0.204092]
[1737993204216,0.46791075,101490.0,101470.0,0.43564288]
[1737993204217,0.05454775,101490.0,101470.0,0.43564288]
[1737993204515,0.197073,101480.0,101470.0,2.064889]
[1737993204717,0.197073,101480.0,101470.0,1.507]
[1737993205020,0.62571588,101480.0,101470.0,0.007]
[1737993205208,0.68071588,101480.0,101470.0,0.007]
[1737993205409,0.197092,101470.0,101460.0,0.00014775]
[1737993205619,0.67933488,101470.0,101460.0,0.00014775]
[1737993207017,0.67933488,101470.0,101460.0,0.00514775]
[1737993209117,0.68949288,101470.0,101460.0,0.00714775]
[1737993210018,0.68949288,101470.0,101460.0,0.00614775]
[1737993210421,0.68949288,101470.0,101430.0,1.68139131]
[1737993210422,0.19715,101440.0,101430.0,1.68139131]
[1737993210611,0.55795,101440.0,101430.0,1.68139131]
[1737993210813,0.55795,101440.0,101430.0,1.94640419]
[1737993211011,0.19715,101440.0,101430.0,2.30720419]
[1737993211514,0.55808875,101450.0,101440.0,0.19715]
[1737993212617,0.19728875,101450.0,101440.0,0.26499288]